bitfinex-derivatives/quotes_ETHF0:USTF0_20250209
["timestamp","ask_amount","ask_price","bid_price","bid_amount"]
[1739064450388,3.11579233,2654.7,2654.3,3.2078]
[1739064450592,6.91288597,2654.6,2654.3,3.2078]
[1739064450889,2.68099371,2654.6,2654.3,3.2078]
[1739064451296,4.18528168,2654.5,2654.3,3.2078]
[1739064451589,3.84519371,2654.9,2654.3,3.2078]
[1739064451590,1.779,2654.6,2654.4,1.1547]
[1739064451794,5.96428168,2654.6,2654.4,1.1547]
[1739064451986,1.779,2654.6,2654.4,1.7113]
[1739064452186,4.31019415,2654.5,2654.4,1.7113]
[1739064453797,3.26889371,2655.2,2654.4,1.7113]
[1739064454091,5.96406341,2655.1,2654.8,3.2078]
[1739064459090,5.96406341,2655.1,2654.5,3.2078]
[1739064459286,5.96406341,2655.1,2654.8,3.2078]
[1739064465099,4.18606341,2655.1,2654.8,3.2078]
[1739064465299,5.94506341,2655.1,2654.8,3.2078]
[1739064469697,4.18606341,2655.1,2654.8,3.2078]
[1739064469901,4.18606341,2655.1,2654.9,0.5719]
[1739064470198,4.18606341,2655.1,2655.0,1.188]
[1739064470398,0.00564897,2655.3,2655.0,1.188]
[1739064470399,4.16616285,2655.2,2655.0,1.188]
[1739064470703,0.00564897,2655.3,2655.0,0.6064]
[1739064471201,4.16616285,2655.2,2655.1,3.2078]
[1739064472093,4.16616285,2655.2,2655.1,5.88879371]
[1739064473300,0.00564897,2655.3,2655.1,5.88879371]
[1739064494419,4.20659356,2655.2,2655.1,3.2078]
[1739064495409,12.88758727,2655.2,2654.8,3.2078]
[1739064495610,6.88758727,2655.2,2654.8,3.2078]
[1739064496709,4.20659356,2655.2,2654.8,3.2078]
[1739064496916,2.68099371,2654.9,2654.8,3.2078]
[1739064497107,4.20659356,2655.2,2654.8,3.2078]
[1739064497108,6.88758727,2655.2,2654.8,3.2078]
[1739064497313,3.94186452,2654.9,2654.8,3.2078]
[1739064497513,3.94186452,2655.1,2654.8,3.2078]
[1739064497716,2.68099371,2654.9,2654.8,3.2078]
[1739064498123,6.62285823,2654.9,2654.8,3.2078]
[1739064499611,5.67486452,2654.9,2654.8,3.2078]
[1739064503110,3.94186452,2654.9,2654.8,3.2078]
[1739064512219,12.62285823,2654.9,2654.4,3.2078]
[1739064512419,0.6021,2654.8,2654.4,3.2078]
[1739064512620,0.5494,2654.7,2654.4,3.2078]
[1739064512820,4.56950772,2654.7,2654.4,3.2078]
[1739064515625,2.68099371,2654.6,2654.4,3.2078]
[1739064515825,3.43428371,2654.6,2654.4,3.2078]
[1739064516025,4.51827256,2654.5,2654.4,3.2078]
[1739064517530,4.51827256,2654.5,2654.1,3.2078]
[1739064517821,2.68099371,2654.3,2654.1,3.2078]
[1739064518026,0.5494,2654.2,2654.1,3.2078]
[1739064518226,4.86733431,2654.2,2654.1,3.2078]
[1739064524838,5.62073431,2654.2,2654.1,3.2078]
[1739064525033,0.75346,2654.0,2653.7,0.58]
[1739064525233,3.43445371,2654.0,2653.7,0.58]
[1739064525431,3.43445371,2654.0,2653.6,0.6043]
[1739064525432,4.8173565,2653.9,2653.6,0.6043]
[1739064525631,1.711,2653.8,2653.6,0.6043]
[1739064526032,4.2383565,2653.7,2653.6,0.6043]
[1739064526538,6.91935021,2653.7,2653.4,3.2078]
[1739064527534,0.5942,2653.6,2653.4,3.2078]
[1739064528039,6.62958342,2653.5,2653.2,0.5675]
[1739064531544,0.5581,2653.4,2653.1,0.6033]
[1739064531738,2.68099371,2653.2,2653.1,0.6033]
[1739064532038,2.68099371,2653.2,2653.0,3.2078]
[1739064532039,8.61662861,2653.2,2653.0,3.2078]
[1739064533342,0.5582,2653.1,2653.0,3.2078]
[1739064533536,0.5582,2653.1,2652.7,0.5488]
[1739064533537,0.5582,2653.1,2652.7,3.2078]
[1739064533737,0.5582,2653.1,2652.5,0.6077]
[1739064533738,2.68099371,2652.8,2652.5,0.6077]
[1739064533943,3.43481371,2652.8,2652.4,3.2078]
[1739064534144,2.68099371,2652.5,2652.4,3.2078]
[1739064534437,4.39599371,2652.5,2652.4,3.2078]
[1739064534741,8.65674015,2652.5,2652.4,3.2078]
[1739064539948,8.65674015,2652.5,2652.0,3.7911]
[1739064540446,8.66238912,2652.5,2652.0,3.7911]
[1739064543452,2.68099371,2652.2,2652.0,0.5833]
[1739064543848,3.96945112,2652.1,2652.0,0.5833]
[1739064545457,3.96945112,2652.1,2652.0,3.7911]
[1739064545852,3.98556509,2652.4,2652.0,3.7911]
[1739064546049,4.40164268,2652.5,2652.0,3.7911]
[1739064546354,4.0076455,2652.4,2652.0,3.7911]
[1739064548061,4.0076455,2652.4,2652.0,0.5833]
[1739064548259,4.7615755,2652.4,2652.0,0.5833]
[1739064548460,4.0076455,2652.4,2652.0,0.5833]
[1739064550860,4.0076455,2652.4,2652.0,3.7911]
[1739064556059,4.0076455,2652.4,2652.3,3.2078]
[1739064556266,5.7046455,2652.4,2652.3,3.2078]
[1739064557671,5.7046455,2652.4,2652.0,3.7911]
[1739064557970,5.7046455,2652.4,2652.3,3.2078]
[1739064560166,5.7006455,2652.4,2652.3,3.2078]
[1739064567576,5.6936455,2652.4,2652.3,3.2078]
[1739064569576,4.0076455,2652.4,2652.3,3.2078]
[1739064577387,1.683,2653.4,2652.3,10.6108]
[1739064577680,4.79079627,2653.3,2653.1,3.2078]
[1739064577886,5.36859627,2653.3,2653.1,3.2078]
[1739064578379,4.21229627,2653.3,2653.1,3.2078]
[1739064578572,4.21229627,2653.3,2653.2,2.68099371]
[1739064579783,3.29999627,2653.3,2653.2,2.68099371]
[1739064580080,3.29999627,2653.3,2653.1,3.2078]
[1739064580379,3.29999627,2653.3,2653.2,2.68099371]
[1739064580585,3.29999627,2653.3,2653.2,3.28899371]
[1739064582681,3.29999627,2653.3,2653.2,0.608]
[1739064583481,3.29999627,2653.3,2653.1,3.2078]
[1739064583677,1.735,2653.2,2653.1,3.2078]
[1739064584082,5.93803617,2653.2,2653.1,3.2078]
[1739064586590,5.93803617,2653.2,2652.9,0.00564897]
[1739064586776,5.88879371,2653.1,2652.9,0.00484897]
[1739064586981,5.88879371,2653.1,2652.3,0.5885]
[1739064587188,2.68099371,2652.8,2652.3,0.5885]
[1739064587389,1.681,2652.7,2652.3,0.5885]
[1739064587685,0.5564,2652.6,2652.1,3.2078]
[1739064587981,1.1313,2652.6,2652.1,3.2078]
[1739064588187,4.12722011,2652.5,2652.1,3.2078]
[1739064590082,6.80821382,2652.5,2652.1,3.2078]
[1739064595985,3.2078,2652.3,2651.8,0.5524]
[1739064596394,4.31783395,2652.2,2651.8,0.5524]
[1739064596592,2.8639,2652.1,2651.8,0.5524]
[1739064596794,3.4305,2652.1,2651.7,3.2078]
[1739064596988,4.3289912,2652.0,2651.7,3.2078]
[1739064598999,4.3289912,2652.0,2651.9,0.00371076]
[1739064600097,4.3289912,2652.0,2651.7,3.2078]
[1739064600601,4.3289912,2652.0,2651.5,0.5517]
[1739064600800,4.3289912,2652.0,2651.3,3.2078]
[1739064600801,2.68099371,2651.6,2651.3,3.2078]
[1739064600997,3.4497,2651.5,2651.3,3.2078]
[1739064601194,7.53970496,2651.5,2651.3,3.2078]
[1739064601588,4.68180496,2651.5,2651.3,3.2078]
[1739064601789,4.09000496,2651.5,2651.3,3.2078]
[1739064602295,1.681,2651.6,2651.3,3.2078]
[1739064602596,3.96470857,2651.5,2651.3,3.2078]
[1739064602800,3.7663,2651.4,2650.7,3.2078]
[1739064603099,2.68099371,2651.1,2650.4,3.2078]
[1739064603289,1.684,2651.0,2650.4,3.2078]
[1739064603491,6.00107815,2651.0,2650.4,3.2078]
[1739064604395,6.00107815,2651.0,2650.7,3.2078]
[1739064604698,6.00107815,2651.0,2650.8,0.6066]
[1739064605299,6.00107815,2651.0,2650.4,4.3656]
[1739064605800,6.00107815,2651.0,2650.7,3.2078]
[1739064605997,4.31707815,2651.0,2650.7,3.2078]
[1739064606298,1.682,2651.1,2650.8,0.6044]
[1739064606496,1.682,2651.1,2650.9,0.5657]
[1739064606695,1.682,2651.1,2651.0,3.2078]
[1739064607100,5.84747828,2651.1,2651.0,3.2078]
[1739064608203,5.84747828,2651.1,2650.9,1.1615]
[1739064610999,4.16547828,2651.1,2651.0,3.2078]
[1739064611294,1.679,2651.5,2651.0,3.2078]
[1739064611502,1.681,2651.7,2651.4,3.2078]
[1739064611700,3.94743614,2651.5,2651.4,3.2078]
[1739064611901,1.681,2651.7,2651.4,3.2078]
[1739064612197,0.37467486,2651.9,2651.4,3.2078]
[1739064612198,3.94743614,2651.5,2651.4,3.2078]
[1739064612402,3.94743614,2651.5,2651.4,5.88879371]
[1739064612699,3.94743614,2651.9,2651.4,11.88879371]
[1739064612901,2.8296,2652.1,2651.4,3.2078]
[1739064613093,3.99903654,2651.8,2651.4,3.2078]
[1739064613400,3.99903654,2651.9,2651.3,0.5529]
[1739064613596,2.68099371,2652.0,2651.3,0.5529]
[1739064613802,3.96447816,2651.8,2651.3,0.5529]
[1739064614203,2.68099371,2652.0,2651.3,0.5529]
[1739064614603,3.96447816,2651.7,2651.3,0.5529]
[1739064614802,5.64547816,2651.9,2651.5,3.2078]
[1739064615100,3.9276413,2651.6,2651.5,3.2078]
[1739064615606,2.2383,2651.9,2651.5,3.2078]
[1739064616105,4.24580446,2651.6,2651.5,3.2078]
[1739064616308,4.24580446,2651.8,2651.5,3.2078]
[1739064616497,2.2383,2651.9,2651.5,3.2078]
[1739064616700,3.98861789,2651.8,2651.5,3.2078]
[1739064617494,2.8638,2652.6,2651.7,2.68099371]
[1739064617692,2.8638,2652.6,2651.9,3.2078]
[1739064618094,0.5776,2652.6,2652.0,2.68099371]
[1739064618301,1.687,2652.8,2652.0,2.68099371]
[1739064618508,0.5776,2652.9,2652.0,8.68099371]
[1739064618805,0.5776,2652.9,2652.6,3.2078]
[1739064618806,4.3613492,2652.8,2652.6,3.2078]
[1739064622995,4.3613492,2652.8,2652.4,0.00564897]
[1739064623197,1.1332,2652.7,2652.4,0.00564897]
[1739064623401,2.68099371,2652.6,2652.4,0.00564897]
[1739064623700,6.79155394,2652.6,2652.4,0.00564897]
[1739064626806,4.11056023,2652.6,2652.4,0.00564897]
[1739064628213,4.11056023,2652.6,2652.4,0.58194897]
[1739064628909,1.687,2652.8,2652.5,0.5838]
[1739064629102,1.687,2652.8,2652.7,3.2078]
[1739064629503,4.04911565,2652.8,2652.7,9.2078]
[1739064629707,0.00564897,2653.0,2652.7,9.2078]
[1739064629914,0.00564897,2653.0,2652.9,2.68099371]
[1739064630301,0.00564897,2653.0,2652.9,8.68099371]
[1739064631318,0.00564897,2653.0,2652.9,2.68099371]
[1739064631712,0.00564897,2653.0,2652.9,8.68099371]
[1739064632716,1.1952,2653.7,2652.9,8.68099371]
[1739064632914,0.5968,2653.7,2653.6,3.2078]
[1739064633115,0.5506,2654.1,2653.6,3.2078]
[1739064633328,0.5768,2654.1,2653.9,3.2078]
[1739064633511,4.23942708,2654.0,2653.9,3.2078]
[1739064633707,0.5768,2654.5,2653.9,3.2078]
[1739064633911,0.00564897,2654.2,2653.9,3.2078]
[1739064634623,3.93886513,2654.1,2653.9,3.2078]
[1739064635615,0.5594,2654.0,2653.7,0.00564897]
[1739064635814,3.7672,2654.0,2653.7,0.00564897]
[1739064636015,4.11572838,2653.9,2653.7,0.00564897]
[1739064636317,1.1238,2653.8,2653.7,0.00564897]
[1739064636713,5.05410385,2653.8,2653.7,0.00564897]
[1739064639915,4.50680385,2653.8,2653.7,0.00564897]
[1739064644809,3.93030385,2653.8,2653.7,0.00564897]
[1739064645014,0.00564897,2654.2,2653.7,0.00564897]
[1739064645216,0.00564897,2654.2,2653.8,3.2078]
[1739064645412,3.94295378,2654.1,2653.8,3.2078]
[1739064645613,0.5886,2654.0,2653.8,3.2078]
[1739064646015,4.9114166,2653.9,2653.8,3.2078]
[1739064646823,4.9114166,2653.9,2653.7,0.00564897]
[1739064648525,4.9114166,2653.9,2653.8,3.2078]
[1739064649721,4.9114166,2653.9,2653.8,3.7974]
[1739064650621,4.9114166,2653.9,2653.8,3.2078]
[1739064656921,0.5767,2653.9,2653.8,3.2078]
[1739064658428,4.80725861,2653.9,2653.8,3.2078]
[1739064658627,4.80725861,2653.9,2653.7,0.00564897]
[1739064659320,2.68099371,2653.8,2653.4,3.2078]
[1739064659521,2.68099371,2653.5,2653.1,3.2078]
[1739064659728,1.1949,2653.4,2653.1,3.2078]
[1739064659928,5.3652116,2653.4,2653.1,3.2078]
[1739064660336,5.3652116,2653.4,2652.6,0.5725]
[1739064660337,5.88879371,2653.2,2652.6,3.2078]
[1739064660526,5.88879371,2653.2,2653.0,0.00564897]
[1739064660729,5.8543116,2653.1,2653.0,0.00564897]
[1739064661421,5.8543116,2653.1,2652.3,3.2078]
[1739064661622,2.68099371,2652.8,2652.3,3.2078]
[1739064662017,3.9245799,2652.7,2652.3,3.2078]
[1739064666931,3.9245799,2652.7,2652.6,3.2078]
[1739064667134,0.00564897,2652.8,2652.6,9.2078]
[1739064667341,0.00564897,2652.8,2652.7,0.6021]
[1739064667639,0.00564897,2652.8,2652.7,7.1644]
[1739064667934,0.00564897,2652.8,2652.7,1.1644]
[1739064668324,0.00564897,2652.8,2652.7,0.6021]
[1739064669531,0.00564897,2652.8,2652.4,0.567]
[1739064670036,4.00846928,2652.7,2652.4,0.567]
[1739064670436,4.00846928,2652.7,2652.3,3.7639]
[1739064671237,4.00846928,2652.7,2652.3,0.5561]
[1739064671431,2.68099371,2652.5,2652.0,4.32]
[1739064671637,2.68099371,2652.5,2651.8,0.5528]
[1739064671830,4.62044663,2652.4,2651.8,0.5528]
[1739064672232,3.2078,2652.3,2651.8,0.5528]
[1739064672430,3.2078,2652.3,2651.6,0.5561]
[1739064672633,4.03294663,2652.2,2651.6,0.5561]
[1739064672834,8.40394034,2652.2,2651.6,0.5561]
[1739064673042,9.00974034,2652.2,2651.6,0.5561]
[1739064673943,9.00974034,2652.2,2651.4,3.2078]
[1739064674937,2.68099371,2651.9,2651.4,3.2078]
[1739064675134,0.5768,2651.8,2651.4,3.2078]
[1739064675340,4.62046984,2651.8,2651.4,3.2078]
[1739064676446,4.04366984,2651.8,2651.4,3.2078]
[1739064676839,4.05592848,2652.1,2651.4,3.2078]
[1739064677038,3.86359371,2652.2,2651.4,3.2078]
[1739064677440,4.05592848,2652.1,2651.4,3.7616]
[1739064677640,4.05592848,2652.1,2651.8,2.68099371]
[1739064677840,3.2078,2652.3,2651.9,0.5671]
[1739064678040,4.28601885,2652.2,2651.9,0.5671]
[1739064678235,4.85891885,2652.2,2651.9,0.5671]
[1739064678441,3.25389371,2652.2,2651.6,0.5671]
[1739064678641,4.28601885,2652.1,2651.6,0.5671]
[1739064679942,4.28601885,2652.1,2651.7,3.2078]
[1739064682048,0.55,2652.4,2651.7,3.2078]
[1739064682349,4.13019143,2652.3,2651.7,3.2078]
[1739064684346,0.567,2652.2,2651.7,3.2078]
[1739064684645,4.33503576,2652.1,2651.7,3.2078]
[1739064688145,0.567,2652.7,2652.0,3.2078]
[1739064688351,0.567,2652.7,2652.3,3.2078]
[1739064688651,4.00206065,2652.6,2652.3,3.2078]
[1739064689541,0.00564897,2652.8,2652.3,3.2078]
[1739064689743,0.00564897,2652.8,2652.6,3.2078]
[1739064689951,0.00564897,2652.8,2652.7,1.1608]
[1739064694648,0.00564897,2652.8,2652.7,4.3686]
[1739064696648,0.00564897,2652.8,2652.7,7.04959371]
[1739064700454,0.00564897,2652.8,2652.7,13.04959371]
[1739064703253,0.00564897,2652.8,2652.7,7.04959371]
[1739064703647,0.00564897,2652.8,2652.7,3.84179371]
[1739064703947,0.00564897,2652.8,2652.7,7.04959371]
[1739064704158,0.5859,2653.6,2652.7,13.04959371]
[1739064704362,0.6026,2653.9,2653.5,5.88879371]
[1739064704558,0.6026,2653.9,2653.8,2.68099371]
[1739064706168,4.76885435,2653.9,2653.6,0.00564897]
[1739064708162,3.2078,2653.8,2653.6,0.00564897]
[1739064708562,4.30709959,2653.7,2653.6,0.00564897]
[1739064709756,7.5289133,2653.8,2653.6,0.00564897]
[1739064710161,3.2078,2653.8,2653.6,0.00564897]
[1739064710363,4.31167174,2653.7,2653.6,0.00564897]
[1739064710662,6.99266545,2653.7,2652.9,5.88879371]
[1739064710962,3.2078,2653.5,2652.9,5.88879371]
[1739064711162,0.5837,2653.4,2652.9,5.88879371]
[1739064711352,4.52792798,2653.4,2652.9,3.2078]
[1739064713865,0.6007,2653.3,2652.9,3.2078]
[1739064714254,0.6007,2653.3,2653.2,2.68099371]
[1739064714562,0.6007,2653.3,2653.2,5.88879371]
[1739064716463,0.6007,2653.3,2653.2,3.2078]
[1739064716662,0.6007,2653.3,2652.9,5.88879371]
[1739064716858,0.5682,2653.2,2652.9,5.88879371]
[1739064718771,0.6007,2653.3,2652.9,5.88879371]
[1739064718972,0.6007,2653.3,2653.2,5.88879371]
[1739064719674,0.5562,2653.6,2653.2,5.88879371]
[1739064720375,0.5562,2653.6,2653.2,6.44579371]
[1739064726776,0.5562,2653.6,2653.2,3.7648]
[1739064727173,0.5562,2653.6,2653.2,3.2078]
[1739064727571,4.13687407,2653.5,2653.2,3.2078]
[1739064730074,7.34467407,2653.5,2652.9,3.2078]
[1739064732682,7.34467407,2653.5,2652.9,5.88879371]
[1739064734079,7.34467407,2653.5,2652.9,3.2078]
[1739064734772,10.02566778,2653.5,2652.7,3.4955]
[1739064734971,5.88879371,2653.2,2652.4,1.1144]
[1739064735178,3.2078,2652.9,2652.3,3.2078]
[1739064735386,1.1691,2652.8,2652.3,3.2078]
[1739064735685,5.46815379,2652.8,2652.3,3.2078]
[1739064736087,5.88879371,2652.6,2651.9,3.7662]
[1739064736279,2.2398,2652.5,2651.9,3.2078]
[1739064736585,6.32253073,2652.5,2651.9,3.2078]
[1739064738086,6.32253073,2652.5,2651.7,3.23369371]
[1739064739380,5.75373073,2652.5,2652.0,2.68099371]
[1739064739585,5.75373073,2652.5,2652.1,0.5668]
[1739064740185,5.75373073,2652.5,2652.2,0.5895]
[1739064742491,5.75373073,2652.5,2651.9,3.2078]
[1739064742981,5.75373073,2652.5,2651.7,2.68099371]
[1739064744380,3.2078,2652.3,2651.6,4.3804]
[1739064744585,0.5579,2652.2,2651.6,4.3804]
[1739064744786,0.5487,2652.1,2651.6,4.3804]
[1739064745181,4.32457779,2652.0,2651.6,4.3804]
[1739064745786,4.32457779,2652.0,2651.7,2.68099371]
[1739064746593,1.128,2652.2,2651.7,2.68099371]
[1739064746779,1.128,2652.2,2651.9,3.2078]
[1739064746990,4.04215566,2652.1,2651.9,3.2078]
[1739064747386,1.18514897,2652.5,2652.0,2.68099371]
[1739064747693,4.35500299,2652.4,2652.0,2.68099371]
[1739064749791,1.18514897,2652.5,2651.6,1.1726]
[1739064749792,0.00564897,2652.5,2652.3,2.68099371]
[1739064749995,0.00564897,2652.5,2652.4,1.1578]
[1739064750199,0.00564897,2652.5,2652.4,1.7572]
[1739064751097,0.6037,2653.3,2652.4,7.7572]
[1739064751311,0.6037,2653.3,2652.8,5.88879371]
[1739064751491,4.08379191,2653.2,2652.8,5.88879371]
[1739064751993,0.5941,2653.7,2653.1,5.88879371]
[1739064752190,0.5941,2653.7,2653.4,5.88879371]
[1739064752398,4.12670519,2653.5,2653.4,5.88879371]
[1739064753098,0.00564897,2653.7,2653.4,5.88879371]
[1739064753894,0.5507,2654.4,2653.4,11.88879371]
[1739064754100,0.5507,2654.4,2654.0,5.88879371]
[1739064754301,4.21126313,2654.3,2654.0,5.88879371]
[1739064761700,4.21126313,2654.3,2654.0,3.2078]
[1739064761900,4.21126313,2654.3,2653.7,2.68099371]
[1739064761901,1.1111,2654.2,2653.7,5.88879371]
[1739064762300,4.1833452,2654.1,2653.7,5.88879371]
[1739064762604,4.1833452,2654.3,2654.0,2.68099371]
[1739064763002,0.00564897,2654.4,2654.0,2.68099371]
[1739064763309,4.23076835,2654.3,2654.0,2.68099371]
[1739064764612,4.23076835,2654.3,2653.7,3.2078]
[1739064764906,5.478,2654.2,2653.7,3.2078]
[1739064765406,4.10609727,2654.1,2653.7,3.2078]
[1739064765704,0.554,2654.0,2653.7,3.2078]
[1739064765908,1.1327,2654.0,2653.7,3.2078]
[1739064766207,4.35156733,2653.9,2653.7,3.2078]
[1739064766997,0.554,2654.0,2653.7,5.88879371]
[1739064767307,0.00564897,2654.4,2653.7,5.88879371]
[1739064767505,0.00564897,2654.4,2653.8,1.1608]
[1739064767704,4.26765821,2654.3,2654.0,5.88879371]
[1739064774011,0.00564897,2654.4,2654.0,5.88879371]
[1739064774216,0.00564897,2654.4,2654.3,2.68099371]
[1739064775415,0.00564897,2654.4,2654.3,5.88879371]
[1739064781825,3.2078,2655.8,2654.3,14.56978742]
[1739064782016,0.6025,2655.5,2654.9,2.68099371]
[1739064782315,4.78342133,2655.5,2654.9,2.68099371]
[1739064782516,0.6025,2655.5,2654.9,2.68099371]
[1739064782722,4.18092133,2655.4,2654.9,2.68099371]
[1739064782914,4.18092133,2655.4,2654.9,2.68664268]
[1739064785425,4.18092133,2655.4,2654.9,0.00564897]
[1739064787026,4.18092133,2655.4,2654.9,2.68664268]
[1739064789125,4.18092133,2655.4,2655.1,3.2078]
[1739064790831,0.00564897,2655.5,2655.2,2.68099371]
[1739064791023,0.00564897,2655.5,2655.4,3.2078]
[1739064792128,0.00564897,2655.5,2655.2,3.28359371]
[1739064792327,0.00564897,2655.5,2655.2,2.68099371]
[1739064792926,4.16712213,2655.4,2655.1,3.2078]
[1739064793126,1.1541,2655.3,2655.1,3.2078]
[1739064793325,1.1541,2655.3,2655.2,2.68099371]
[1739064802941,1.1541,2655.3,2655.1,3.2078]
[1739064803147,1.1541,2655.3,2654.9,2.68664268]
[1739064803148,5.4174916,2655.3,2654.9,0.00564897]
[1739064803846,3.2078,2655.1,2654.9,0.00564897]
[1739064804248,4.12738977,2655.0,2654.9,0.00564897]
[1739064804644,12.80838348,2655.0,2654.4,3.2078]
[1739064804835,3.2078,2654.8,2654.0,5.88879371]
[1739064805156,4.86100036,2654.7,2654.0,5.88879371]
[1739064805341,5.43360036,2654.7,2654.0,5.88879371]
[1739064805837,5.43360036,2654.7,2654.1,0.00564897]
[1739064805838,3.2078,2654.5,2654.1,0.00564897]
[1739064806042,3.2078,2654.2,2654.1,0.00564897]
[1739064806551,13.34653292,2654.2,2653.7,3.2078]
[1739064806849,0.5567,2654.1,2653.7,3.2078]
[1739064807345,4.26134024,2654.0,2653.7,3.2078]
[1739064809542,0.5484,2653.9,2653.6,0.00564897]
[1739064809841,4.19652004,2653.8,2653.6,0.00564897]
[1739064812244,4.19652004,2653.8,2653.7,2.68099371]
[1739064812640,4.31183618,2654.0,2653.7,2.68099371]
[1739064812837,4.31183618,2654.0,2653.6,0.00564897]
[1739064812838,0.5567,2654.1,2653.6,0.00564897]
[1739064813150,0.6074,2653.9,2653.6,0.00564897]
[1739064813654,4.04014235,2653.8,2653.6,0.00564897]
[1739064816148,5.72905065,2654.0,2653.6,0.00564897]
[1739064816453,4.31692573,2653.9,2653.6,0.00564897]
[1739064816645,0.5567,2654.1,2653.6,0.00564897]
[1739064816844,4.31692573,2653.9,2653.6,0.00564897]
[1739064817253,0.5567,2654.1,2653.6,0.00564897]
[1739064817650,4.12967813,2653.8,2653.6,0.00564897]
[1739064817852,4.12967813,2654.0,2653.6,0.00564897]
[1739064818046,0.5567,2654.1,2653.6,0.00564897]
[1739064818244,4.12967813,2653.7,2653.6,0.00564897]
[1739064818549,0.5567,2654.1,2653.6,0.00564897]
[1739064818946,4.28330762,2653.7,2653.6,0.00564897]
[1739064819356,0.5567,2654.1,2653.6,0.00564897]
[1739064819647,4.11253662,2653.8,2653.7,3.2078]
[1739064820057,0.5567,2654.1,2653.7,3.2078]
[1739064820251,4.30793734,2653.8,2653.7,3.2078]
[1739064820652,0.5567,2654.1,2653.7,3.2078]
[1739064821050,4.30793734,2653.8,2653.7,3.2078]
[1739064821256,4.30793734,2654.0,2653.7,3.2078]
[1739064821468,0.5567,2654.1,2653.7,3.2078]
[1739064821660,4.2012393,2653.8,2653.7,3.2078]
[1739064821856,4.2012393,2654.0,2653.7,3.815]
[1739064822058,0.5567,2654.1,2653.7,3.815]
[1739064822259,4.08352003,2654.0,2653.7,3.815]
[1739064822551,4.08352003,2654.0,2653.7,6.49599371]
[1739064822948,4.63882003,2654.1,2653.7,6.49599371]
[1739064823145,0.5553,2654.1,2653.7,3.815]
[1739064823555,4.31424114,2654.0,2653.7,3.2078]
[1739064824256,4.31424114,2654.0,2653.7,5.88879371]
[1739064824559,4.21200006,2654.1,2653.7,5.88879371]
[1739064824753,1.14194897,2654.2,2653.7,5.88879371]
[1739064824952,4.21200006,2654.1,2653.7,5.88879371]
[1739064826053,0.00564897,2654.2,2654.0,2.68099371]
[1739064826252,0.00564897,2654.2,2654.1,1.1437]
[1739064826662,0.00564897,2654.2,2654.1,1.7363]
[1739064831560,0.00564897,2654.2,2654.0,5.88879371]
[1739064831561,0.00564897,2654.2,2654.0,3.2078]
[1739064831763,4.21572823,2654.2,2653.7,7.04769371]
[1739064832069,0.5775,2654.1,2653.7,7.04769371]
[1739064832261,1.1535,2654.1,2653.7,7.04769371]
[1739064832568,3.98046353,2654.0,2653.7,7.04769371]
[1739064834463,0.00564897,2654.2,2653.7,7.04769371]
[1739064834765,0.00564897,2654.2,2654.1,3.2078]
[1739064837168,0.00564897,2654.2,2653.8,3.2078]
[1739064837169,4.09437871,2654.2,2653.8,3.2078]
[1739064837467,0.5671,2654.1,2653.8,3.2078]
[1739064837867,4.00339183,2654.0,2653.8,3.2078]
[1739064838069,0.00564897,2654.2,2653.9,2.68099371]
[1739064838265,0.00564897,2654.2,2654.1,3.2078]
[1739064844973,0.00564897,2654.2,2654.1,3.96123]
[1739064845167,0.5541,2655.0,2654.1,9.61873138]
[1739064845369,1.1544,2655.4,2654.8,2.68099371]
[1739064845569,1.1544,2655.4,2654.9,1.1638]
[1739064845777,4.11032083,2655.2,2654.9,1.1638]
[1739064845969,4.11032083,2655.3,2655.1,3.2078]
[1739064846173,1.1544,2655.4,2655.1,3.2078]
[1739064846372,4.06669805,2655.3,2654.9,0.00564897]
[1739064847874,6.74769176,2655.3,2654.9,0.00564897]
[1739064848469,1.667,2655.2,2654.9,0.00564897]
[1739064848874,4.14766415,2655.1,2654.9,0.00564897]
[1739064852971,7.35546415,2655.1,2654.9,0.00564897]
[1739064854677,2.68099371,2655.0,2653.9,5.88879371]
[1739064854880,2.68099371,2654.7,2653.9,5.88879371]
[1739064855074,1.667,2654.6,2653.9,3.2078]
[1739064855270,5.62693093,2654.6,2653.9,3.2078]
[1739064855883,5.62693093,2654.6,2654.0,0.00564897]
[1739064857678,2.68099371,2654.4,2654.0,0.00564897]
[1739064857979,1.1768,2654.3,2653.6,3.2078]
[1739064858174,5.16072379,2654.3,2653.6,3.2078]
[1739064859182,3.98392379,2654.3,2654.2,5.88879371]
[1739064865685,0.00564897,2654.5,2654.2,14.98049437]
[1739064865992,0.00564897,2654.5,2654.3,0.41068173]
[1739064866192,0.00564897,2654.5,2654.2,5.88879371]
[1739064866389,0.00564897,2654.5,2654.3,0.41062245]
[1739064866589,0.00564897,2654.5,2654.2,5.88879371]
[1739064866791,0.00564897,2654.5,2654.3,0.41062205]
[1739064867092,0.00564897,2654.5,2654.2,5.88879371]
[1739064874806,0.00564897,2654.5,2654.3,0.41046471]
[1739064875006,0.5743,2655.3,2654.4,0.5934]
[1739064875205,0.5501,2655.2,2654.9,3.2078]
[1739064875502,4.13567137,2655.1,2654.9,3.2078]
[1739064875705,4.68577137,2655.2,2654.9,3.2078]
[1739064875904,4.68577137,2655.2,2654.8,2.68099371]
[1739064875905,0.5501,2655.2,2654.6,3.2078]
[1739064876102,4.22761241,2655.1,2654.7,0.00564897]
[1739064876406,0.5496,2655.0,2654.7,0.00564897]
[1739064876813,4.23709992,2654.9,2654.7,0.00564897]
[1739064884911,7.44489992,2654.9,2654.7,0.00564897]
[1739064887520,0.75323,2654.8,2654.7,0.00564897]
[1739064887815,9.2078,2654.9,2653.8,0.5631]
[1739064888023,3.2078,2654.2,2653.5,3.815]
[1739064888218,3.3938,2654.1,2653.5,3.2078]
[1739064888410,7.50912857,2654.1,2653.5,3.2078]
[1739064889020,3.2078,2653.9,2653.3,6.94106425]
[1739064889414,4.27905003,2653.8,2653.3,4.26007054]
[1739064890725,6.96004374,2653.8,2653.3,4.26007054]
[1739064891425,6.96004374,2653.8,2653.2,3.2078]
[1739064891924,7.71357374,2653.8,2653.0,2.68099371]
[1739064892322,3.2078,2653.6,2653.0,2.68099371]
[1739064892521,3.2078,2653.6,2652.9,3.2078]
[1739064892522,2.811,2653.5,2652.9,3.2078]
[1739064892821,7.58902841,2653.5,2652.9,3.2078]